bitfinex/quotes_ETHUSD_20250916
["timestamp","ask_amount","ask_price","bid_price","bid_amount"]
[1757986655414,8.31554614,4540.2,4540.1,1e-08]
[1757986655615,14.55420715,4540.2,4540.1,1e-08]
[1757986655817,15.34907106,4540.2,4540.1,1e-08]
[1757986656118,44.99941829,4540.2,4540.1,1e-08]
[1757986656438,46.18744673,4540.2,4540.1,1e-08]
[1757986656818,16.18744673,4540.2,4540.1,1e-08]
[1757986657028,46.18744673,4540.2,4540.1,1e-08]
[1757986657698,44.99941829,4540.2,4540.1,1e-08]
[1757986658250,46.18744673,4540.2,4540.1,1e-08]
[1757986659506,45.18631829,4540.2,4540.1,1e-08]
[1757986659902,15.18631829,4540.2,4540.1,1e-08]
[1757986660205,45.18631829,4540.2,4540.1,1e-08]
[1757986660906,46.37434673,4540.2,4540.1,1e-08]
[1757986661101,47.69934673,4540.2,4539.8,0.001]
[1757986661341,0.792,4539.2,4538.4,0.4453]
[1757986661545,0.792,4539.2,4537.1,0.02]
[1757986661546,11.68028338,4538.9,4538.7,0.9381]
[1757986661746,11.68028338,4538.9,4537.1,0.02]
[1757986661747,0.792,4538.3,4537.1,0.02]
[1757986661919,43.68351681,4538.2,4537.1,0.02]
[1757986662118,42.68139774,4538.2,4537.1,0.02]
[1757986662305,42.47460381,4538.2,4538.1,0.3168]
[1757986662512,42.5630015,4538.2,4538.1,0.3168]
[1757986662820,42.56224573,4538.2,4538.1,0.3168]
[1757986663245,42.90793223,4538.2,4538.1,0.3168]
[1757986663812,43.11379363,4538.2,4538.1,0.3168]
[1757986664650,43.11379363,4538.2,4538.1,1.2549]
[1757986665279,13.17975972,4538.2,4538.1,1.2549]
[1757986665454,14.60702632,4538.2,4538.1,1.2549]
[1757986666083,36.82005132,4538.2,4538.1,1.2549]
[1757986666249,36.73036832,4538.2,4538.1,1.2549]
[1757986666575,36.95274882,4538.2,4538.1,1.2549]
[1757986666782,28.93446482,4538.2,4538.1,1.2549]
[1757986666979,31.22185182,4538.2,4538.1,1.2549]
[1757986667179,31.79946282,4538.2,4538.1,1.2549]
[1757986667385,29.49130448,4538.2,4538.1,1.2549]
[1757986667683,38.47712348,4538.2,4538.1,1.2549]
[1757986667883,38.58752348,4538.2,4538.1,1.2549]
[1757986668096,41.78752348,4538.2,4538.1,1.2549]
[1757986668287,42.46453948,4538.2,4538.1,1.2549]
[1757986668455,42.60297648,4538.2,4538.1,1.2549]
[1757986669189,44.14630902,4538.2,4538.1,0.02]
[1757986669889,2.99580818,4537.6,4537.5,0.4928]
[1757986670070,2.99590532,4537.4,4537.3,0.4691]
[1757986670272,5.99600246,4537.2,4537.1,0.02]
[1757986670598,41.66796637,4537.2,4537.1,0.02]
[1757986670787,41.66796637,4537.2,4537.1,0.3108]
[1757986670953,41.66796637,4537.2,4537.1,1.2319]
[1757986671156,41.7563795,4537.2,4537.1,1.2319]
[1757986671355,41.87974425,4537.2,4537.1,1.2319]
[1757986671564,41.7563795,4537.2,4537.1,1.2319]
[1757986671785,42.25117008,4537.2,4537.1,1.2319]
[1757986672214,42.45672955,4537.2,4537.1,1.2319]
[1757986672392,41.52653355,4537.2,4537.1,1.2319]
[1757986672904,37.85453355,4537.2,4537.1,1.2319]
[1757986673118,42.45772955,4537.2,4537.1,1.2319]
[1757986674430,42.45772955,4537.2,4537.1,0.02]
[1757986674588,48.02297148,4537.2,4537.1,0.02]
[1757986675484,16.25884431,4537.2,4537.1,1.2332]
[1757986676096,36.19401131,4537.2,4537.1,1.2332]
[1757986676326,21.39750231,4537.2,4537.1,1.2332]
[1757986677103,21.74327422,4537.2,4537.1,1.2332]
[1757986677312,30.20489522,4537.2,4537.1,1.2332]
[1757986678202,33.24018022,4537.2,4537.1,1.2332]
[1757986678521,31.27211422,4537.2,4537.1,1.2332]
[1757986678682,27.59911422,4537.2,4537.1,1.2332]
[1757986678885,14.831822,4537.2,4537.1,1.2332]
[1757986679214,26.21843109,4537.2,4537.1,1.2332]
[1757986679444,25.98311209,4537.2,4537.1,1.2332]
[1757986679742,16.47743209,4537.2,4537.1,1.2332]
[1757986679944,15.18043209,4537.2,4537.1,1.2332]
[1757986680530,12.97642963,4537.2,4537.1,1.2332]
[1757986680740,15.18043209,4537.2,4537.1,1.2332]
[1757986681254,23.65631509,4537.2,4537.1,1.2332]
[1757986681604,19.98331509,4537.2,4537.1,1.2332]
[1757986681804,30.65631509,4537.2,4537.1,1.2332]
[1757986682103,31.43523911,4537.2,4537.1,1.2332]
[1757986682312,41.90532011,4537.2,4537.1,1.2332]
[1757986682519,47.78732082,4537.2,4537.1,0.02]
[1757986683307,55.56755382,4537.2,4537.1,0.02]
[1757986683825,54.77725382,4537.2,4537.1,0.02]
[1757986684029,55.10649342,4537.2,4537.1,0.3168]
[1757986684219,55.10649342,4537.2,4537.1,0.02]
[1757986684415,54.77725382,4537.2,4537.1,0.02]
[1757986684620,54.77725382,4537.2,4537.1,0.3168]
[1757986684816,49.70994656,4537.2,4537.1,1.2332]
[1757986685224,28.86337756,4537.2,4537.1,1.2332]
[1757986685409,34.51812756,4537.2,4537.1,1.2332]
[1757986685638,38.52205756,4537.2,4537.1,1.2332]
[1757986685818,32.69472256,4537.2,4537.1,1.2332]
[1757986686021,24.81610256,4537.2,4537.1,1.2332]
[1757986686236,26.14793156,4537.2,4537.1,1.2332]
[1757986686542,30.64493156,4537.2,4537.1,1.2332]
[1757986686840,34.24400456,4537.2,4537.1,1.2332]
[1757986687020,25.36095856,4537.2,4537.1,1.2332]
[1757986687216,25.31678156,4537.2,4537.1,1.2332]
[1757986687418,28.19202956,4537.2,4537.1,1.2332]
[1757986687625,37.29490456,4537.2,4537.1,1.2332]
[1757986687817,31.64062556,4537.2,4537.1,1.2332]
[1757986688143,27.65929656,4537.2,4537.1,1.2332]
[1757986688342,31.48089756,4537.2,4537.1,1.2332]
[1757986688540,34.68089756,4537.2,4537.1,1.2332]
[1757986688721,22.49652256,4537.2,4537.1,1.2332]
[1757986688922,22.18642256,4537.2,4537.1,1.2332]
[1757986689941,33.63403656,4537.2,4537.1,1.2332]
[1757986690244,33.63403656,4537.2,4537.1,0.02]
[1757986690445,34.22751263,4537.2,4537.1,0.02]
[1757986690715,35.52916891,4537.2,4537.1,0.02]
[1757986690836,50.92884648,4537.2,4537.1,0.02]
[1757986692071,52.54827535,4537.2,4537.1,0.02]
[1757986692831,51.70733846,4537.2,4537.1,0.02]
[1757986694757,52.46455816,4537.2,4537.1,0.02]
[1757986696130,29.16077016,4537.2,4537.1,0.021]
[1757986696329,25.14197818,4537.2,4537.1,0.021]
[1757986696583,27.62505848,4537.2,4537.1,0.021]
[1757986696882,28.81497818,4537.2,4537.1,0.021]
[1757986697180,51.82006618,4537.2,4537.1,0.021]
[1757986697626,52.12016618,4537.2,4537.1,0.021]
[1757986698067,52.46595303,4537.2,4537.1,0.021]
[1757986699465,52.16585303,4537.2,4537.1,0.021]
[1757986699760,24.89521003,4537.2,4537.1,0.792]
[1757986699968,26.58788678,4537.2,4537.1,1.2342]
[1757986700533,26.58788678,4537.2,4537.1,0.76]
[1757986701089,26.92934978,4537.2,4537.1,1.2243]
[1757986701854,26.92934978,4537.2,4537.1,0.3178]
[1757986702059,49.33105878,4537.2,4537.1,0.021]
[1757986702383,48.57912078,4537.2,4537.1,0.021]
[1757986702539,44.34769178,4537.2,4537.1,0.021]
[1757986702740,44.00143678,4537.2,4537.1,0.021]
[1757986702935,20.22131778,4537.2,4537.1,0.021]
[1757986703135,44.27910878,4537.2,4537.1,0.021]
[1757986703336,45.03122433,4537.2,4537.1,0.021]
[1757986703581,45.30932433,4537.2,4537.1,0.021]
[1757986703884,49.55959404,4537.2,4537.1,0.021]
[1757986704042,55.95490304,4537.2,4537.1,0.021]
[1757986704572,55.50180304,4537.2,4537.1,0.021]
[1757986705331,62.57180304,4537.2,4537.1,0.021]
[1757986705984,28.13160304,4537.2,4537.1,0.7877]
[1757986706184,58.93956006,4537.2,4537.1,1.2525]
[1757986706590,58.93956006,4537.2,4537.1,0.3234]
[1757986706796,39.08377406,4537.2,4537.1,1.2525]
[1757986707157,40.23851806,4537.2,4537.1,1.2525]
[1757986707954,38.74179904,4537.2,4537.1,1.2525]
[1757986708285,42.21738904,4537.2,4537.1,1.2525]
[1757986708597,41.92356892,4537.2,4537.1,1.2525]
[1757986709155,42.87858392,4537.2,4537.1,1.2525]
[1757986709601,42.37674792,4537.2,4537.1,1.2525]
[1757986709896,42.37709223,4537.2,4537.1,1.2525]
[1757986710100,42.50428038,4537.2,4537.1,1.2525]
[1757986711186,46.96371338,4537.2,4537.1,1.2525]
[1757986711894,44.04501538,4537.2,4537.1,1.2525]
[1757986712282,46.98580738,4537.2,4537.1,1.2525]
[1757986712616,45.68880738,4537.2,4537.1,1.2525]
[1757986713116,34.63563052,4537.2,4537.1,0.7877]
[1757986713420,38.88590023,4537.2,4537.1,1.2525]
[1757986713580,29.88999777,4537.2,4536.8,0.08]
[1757986713780,10.24641791,4536.9,4536.8,0.08]
[1757986713981,38.8653264,4536.9,4536.8,0.08]
[1757986714292,41.29162532,4536.9,4536.8,0.8472]
[1757986714710,39.27678032,4536.9,4536.8,0.8472]
[1757986714906,39.27678032,4536.9,4536.8,0.08]
[1757986715105,39.87227098,4536.9,4536.8,0.3824]
[1757986715424,45.58640032,4536.9,4536.8,0.8472]
[1757986715608,43.53391632,4536.9,4536.8,0.8472]
[1757986716209,44.06693132,4536.9,4536.8,1.3115]
[1757986716384,32.5079454,4536.9,4536.8,1.3115]
[1757986716588,31.91239732,4536.9,4536.8,1.3115]
[1757986717527,34.77201232,4536.9,4536.8,1.3115]
[1757986717824,34.77201232,4536.9,4536.8,0.5443]
[1757986718024,30.18798732,4536.9,4536.8,0.08]
[1757986718187,30.18798732,4536.9,4536.8,0.3824]
[1757986718392,45.58640032,4536.9,4536.8,0.3824]
[1757986718825,35.54854932,4536.9,4536.8,0.3824]
[1757986719421,42.77646732,4536.9,4536.8,0.3824]
[1757986719894,42.51345177,4536.9,4536.8,1.3115]
[1757986720094,29.32459377,4536.9,4536.8,1.3115]
[1757986720312,15.32338477,4536.9,4536.8,1.3115]
[1757986720726,25.88706777,4536.9,4536.8,1.3115]
[1757986721020,24.06836377,4536.9,4536.8,1.3115]
[1757986721407,26.07012577,4536.9,4536.8,1.3115]
[1757986722031,15.01842086,4536.9,4536.8,1.3115]
[1757986722339,43.97810286,4536.9,4536.8,1.3115]
[1757986722540,45.32338477,4536.9,4536.8,1.3115]
[1757986722697,46.10548477,4536.9,4536.8,0.08]
[1757986723032,45.81248477,4536.9,4536.8,0.08]
[1757986723502,45.32338477,4536.9,4536.8,0.08]
[1757986724040,35.97159077,4536.9,4536.8,0.08]
[1757986724227,38.79032377,4536.9,4536.8,0.08]
[1757986724428,36.94180377,4536.9,4536.8,0.08]
[1757986724928,15.32438477,4536.9,4536.8,0.08]
[1757986725115,15.32438477,4536.9,4536.8,0.8472]
[1757986725315,19.56159077,4536.9,4536.8,1.3115]
[1757986725902,20.94169977,4536.9,4536.8,1.3115]
[1757986726437,21.70889977,4536.9,4536.8,0.08]
[1757986726837,42.87104306,4536.9,4536.8,0.08]
[1757986727043,47.12131277,4536.9,4536.8,0.08]
[1757986727553,46.35411277,4536.9,4536.8,0.08]
[1757986727715,47.14789379,4536.9,4536.8,0.08]
[1757986727916,48.59626579,4536.9,4536.8,0.08]
[1757986728530,47.82821832,4536.9,4536.8,0.08]
[1757986728851,2.99624537,4536.7,4536.6,0.001]
[1757986729051,41.25680586,4536.7,4536.6,0.001]
[1757986729221,42.47730586,4536.7,4536.6,0.001]
[1757986730227,43.66871595,4536.7,4536.6,0.001]
[1757986730551,43.66878502,4536.7,4536.6,0.001]
[1757986730869,43.66977448,4536.7,4536.6,0.001]
[1757986731224,42.82419023,4536.7,4536.6,0.001]
[1757986733834,42.38579023,4536.7,4536.6,0.001]
[1757986734533,42.8423294,4536.7,4536.6,0.001]
[1757986734734,43.04902342,4536.7,4536.6,0.001]
[1757986734932,50.11902342,4536.7,4536.6,0.001]
[1757986736389,56.64506331,4536.7,4536.6,0.001]
[1757986736684,57.12117984,4536.7,4536.6,0.001]
[1757986737582,2.99648833,4536.2,4536.1,0.9287]
[1757986737754,45.05948958,4536.2,4536.1,0.9287]
[1757986737951,46.00227527,4536.2,4536.1,0.021]
[1757986738351,46.25460257,4536.2,4536.1,0.021]
[1757986738654,46.25460257,4536.2,4536.1,1.2527]
[1757986738853,46.84963303,4536.2,4536.1,1.2527]
[1757986739657,46.50379332,4536.2,4536.1,1.2527]
[1757986742251,46.96789332,4536.2,4536.1,0.021]
[1757986742483,47.31372647,4536.2,4536.1,0.021]
[1757986742689,46.84962647,4536.2,4536.1,0.021]
[1757986742885,46.84962647,4536.2,4536.1,0.328]
[1757986743795,46.84962647,4536.2,4536.1,1.2527]
[1757986745271,46.84937144,4536.2,4536.1,1.2527]
[1757986746586,16.84937144,4536.2,4536.1,1.2527]
[1757986747117,47.01114098,4536.2,4536.1,0.021]
[1757986747693,46.25434098,4536.2,4536.1,0.328]
[1757986747891,46.25434098,4536.2,4536.1,0.7918]
[1757986749072,46.25424536,4536.2,4536.1,0.7918]
[1757986749797,46.25424536,4536.2,4536.1,0.328]
[1757986750379,42.57424536,4536.2,4536.1,0.328]
[1757986750595,27.73268431,4536.2,4536.1,1.2527]
[1757986750786,28.87868431,4536.2,4536.1,1.2527]
[1757986751712,28.78148431,4536.2,4536.1,1.2527]
[1757986752777,31.06678831,4536.2,4536.1,1.2527]
[1757986753121,28.29448259,4536.2,4536.1,1.2527]
[1757986754106,11.34917859,4536.2,4536.1,1.2527]
[1757986754273,5.46869026,4536.2,4536.1,1.2527]
[1757986754479,4.78597533,4536.2,4536.1,1.2527]
[1757986754700,8.46097533,4536.2,4536.1,1.2527]
[1757986754906,4.78597533,4536.2,4536.1,1.2527]
[1757986755122,7.59110496,4536.2,4536.1,1.2527]
[1757986755683,7.79778863,4536.2,4536.1,1.2527]
[1757986755974,7.467,4536.2,4536.1,1.2527]
[1757986756318,7.59101081,4536.2,4536.1,1.2527]
[1757986756517,7.79770204,4536.2,4536.1,1.2527]
[1757986757012,4.12270204,4536.2,4536.1,1.2527]
[1757986757311,7.468,4536.2,4536.1,1.2527]
[1757986757702,7.59200529,4536.2,4536.1,1.2527]
[1757986758316,3.91600529,4536.2,4536.1,1.2527]
[1757986758519,3.677,4536.2,4536.1,1.37797]
[1757986758717,1.696,4536.9,4536.5,2.20430127]
[1757986758884,3.0,4536.7,4536.6,0.9247]
[1757986759085,3.0,4536.7,4536.6,1.2317]
[1757986760212,3.792,4536.7,4536.6,0.307]
[1757986760415,0.792,4536.4,4536.1,0.021]
[1757986760714,0.792,4536.2,4536.1,0.021]
[1757986760915,13.29428425,4536.2,4536.1,0.021]
[1757986761081,14.80986038,4536.2,4536.1,0.021]
[1757986761280,15.27156038,4536.2,4536.1,0.021]
[1757986761688,15.61739357,4536.2,4536.1,0.021]
[1757986762026,14.56887802,4536.2,4536.1,0.021]
[1757986762198,18.24687802,4536.2,4536.1,0.021]
[1757986762697,15.46052411,4536.2,4536.1,0.7687]
[1757986762906,15.46052411,4536.2,4536.1,1.2194]
[1757986763089,14.34619411,4536.2,4536.1,0.7687]
[1757986763296,14.34619411,4536.2,4536.1,0.307]
[1757986763496,14.65115802,4536.2,4536.1,0.307]
[1757986764004,16.66085802,4536.2,4536.1,0.021]
[1757986764203,17.13265802,4536.2,4536.1,0.021]
[1757986764814,13.45465802,4536.2,4536.1,0.021]
[1757986765018,17.13165802,4536.2,4536.1,0.021]
[1757986765480,44.96111768,4536.2,4536.1,0.021]
[1757986766511,44.54321768,4536.2,4536.1,0.021]
[1757986767607,28.53297222,4536.2,4536.1,0.307]
[1757986767798,15.98682222,4536.2,4536.1,0.307]
[1757986768394,15.78030211,4536.2,4536.1,0.307]
[1757986769589,16.77233368,4536.2,4536.1,0.021]
[1757986769887,44.28021359,4536.2,4536.1,0.021]
[1757986770093,44.54322914,4536.2,4536.1,0.021]
[1757986771332,44.54328024,4536.2,4536.1,0.021]
[1757986771490,40.78228924,4536.2,4536.1,0.021]
[1757986771811,29.40269669,4536.2,4536.1,0.021]
[1757986771984,29.40273341,4536.2,4536.1,0.021]
[1757986772595,28.61723341,4536.2,4536.1,0.021]
[1757986772788,28.61723341,4536.2,4536.1,1.2194]
[1757986772789,9.30629161,4536.2,4536.1,1.2194]
[1757986772989,12.98229161,4536.2,4536.1,1.2194]
[1757986775731,10.77780328,4536.2,4536.1,0.7687]
[1757986775931,7.1018128,4536.2,4536.1,1.2194]
[1757986776135,10.43197961,4536.2,4536.1,1.2194]
[1757986776355,6.75597961,4536.2,4536.1,1.2194]
[1757986776556,9.95618294,4536.2,4536.1,1.2194]
[1757986776850,6.42549667,4536.2,4536.1,1.2194]
[1757986777055,9.6257,4536.2,4536.1,1.2194]
[1757986778921,9.97149765,4536.2,4536.1,1.2194]
[1757986780244,6.29549765,4536.2,4536.1,1.2194]
[1757986780442,9.97049765,4536.2,4536.1,1.2194]
[1757986780643,2.04179765,4536.2,4536.1,3.76854449]
[1757986780843,8.371,4536.2,4536.1,3.76854449]
[1757986783546,8.371,4536.2,4536.1,1.56400756]
[1757986783748,8.371,4536.2,4536.1,1.2194]
[1757986784745,8.371,4536.2,4536.1,0.021]
[1757986785836,8.8428,4536.2,4536.1,0.021]
[1757986786032,8.371,4536.2,4536.1,0.021]
[1757986787942,8.8327,4536.2,4536.1,0.021]
[1757986788450,12.58878833,4536.2,4536.1,0.021]
[1757986788969,10.3843,4536.2,4536.1,0.021]
[1757986789915,10.73010366,4536.2,4536.1,0.021]
[1757986790458,9.97050366,4536.2,4536.1,0.021]
[1757986790636,9.97050366,4536.2,4536.1,0.3083]
[1757986794355,9.97050366,4536.2,4536.1,1.2151]
[1757986794356,9.17750366,4536.2,4536.1,1.2151]
[1757986794555,9.17750366,4536.2,4536.1,3.41963693]
[1757986794919,9.17750366,4536.2,4536.1,1.2151]
[1757986795119,5.50350366,4536.2,4536.1,1.2151]
[1757986795422,8.71580366,4536.2,4536.1,3.76381934]
[1757986796124,8.71580366,4536.2,4536.1,1.55928241]
[1757986796328,8.71580366,4536.2,4536.1,3.41963693]
[1757986797353,5.04180366,4536.2,4536.1,3.41963693]
[1757986797667,8.71580366,4536.2,4536.1,3.41963693]
[1757986800770,8.71580366,4536.2,4536.1,1.2151]
[1757986800968,9.19310366,4536.2,4536.1,0.021]
[1757986801168,9.48380366,4536.2,4536.1,0.021]
[1757986801341,8.71580366,4536.2,4536.1,0.021]
[1757986801671,8.71580366,4536.2,4536.1,0.317]
[1757986801974,8.71580366,4536.2,4536.1,2.52153693]
[1757986802467,8.71580366,4536.2,4536.1,2.96243693]
[1757986802668,8.71580366,4536.2,4536.1,3.41873693]
[1757986802967,8.71580366,4536.2,4536.1,1.2142]
[1757986803672,8.71580366,4536.2,4536.1,3.41873693]
[1757986805246,8.71580366,4536.2,4536.1,3.44078229]
[1757986805478,8.71580366,4536.2,4536.1,2.99988229]
[1757986805677,8.71580366,4536.2,4536.1,3.44078229]
[1757986806179,10.27580366,4536.2,4536.1,0.021]
[1757986806657,10.93893876,4536.2,4536.1,0.021]
[1757986806857,10.17093876,4536.2,4536.1,0.021]
[1757986807573,9.0321351,4536.2,4536.1,3.73322497]
[1757986808146,8.369,4536.2,4536.1,3.73322497]
[1757986809073,8.369,4536.2,4536.1,3.75527033]
[1757986809375,8.369,4536.2,4536.1,3.73322497]
[1757986809738,3.0,4536.2,4536.1,3.75527033]
[1757986810143,0.002,4536.6,4536.5,2.20434255]
[1757986810339,3.675,4536.6,4536.5,3.8384182]
[1757986811604,0.002,4536.6,4536.5,3.86046162]
[1757986811765,0.002,4536.6,4536.5,18.36046162]
[1757986812080,0.002,4536.6,4536.5,18.3384182]
[1757986817083,0.002,4536.6,4536.5,18.4480182]
[1757986819307,0.002,4536.6,4536.5,22.1210182]
[1757986819833,0.002,4536.6,4536.5,18.4480182]
[1757986820037,0.002,4536.6,4536.5,22.1210182]
[1757986820586,0.002,4536.6,4536.5,18.4480182]
[1757986820791,0.7655,4536.6,4536.5,16.70434255]
[1757986821023,0.1096,4536.5,4536.1,2.22552331]
[1757986821223,0.2933,4536.6,4536.1,2.22552331]
[1757986821446,0.2928,4536.2,4536.1,0.021]
[1757986821789,1.2035,4536.2,4536.1,0.021]
[1757986824134,0.765,4536.2,4536.1,0.021]
[1757986824302,0.4722,4536.5,4536.1,0.3246]
[1757986824502,3.0,4536.3,4536.2,0.02204488]
[1757986824707,3.0,4536.3,4536.2,2.22653321]
[1757986824907,3.2648,4536.3,4536.2,2.22653321]
[1757986825104,3.737,4536.3,4536.2,2.22653321]
[1757986825504,3.737,4536.3,4536.1,2.22553188]
[1757986825830,0.1096,4536.2,4536.1,2.22553188]
[1757986828034,0.3744,4536.2,4536.1,0.021]
[1757986828248,0.8466,4536.2,4536.1,0.021]
[1757986828414,2.1049,4536.2,4536.1,0.021]
[1757986828615,9.35373046,4536.2,4536.1,0.021]
[1757986829120,5.1049,4536.2,4536.1,0.021]
[1757986830137,6.11382137,4536.2,4536.1,0.021]
[1757986831340,12.56714016,4536.2,4536.1,0.021]
[1757986831698,10.36265183,4536.2,4536.1,0.021]
[1757986834151,14.03565183,4536.2,4536.1,0.021]
[1757986834751,14.03665183,4536.2,4536.1,0.021]
[1757986838927,36.76146516,4536.2,4536.1,0.021]
[1757986839152,50.79493453,4536.2,4536.1,0.021]
[1757986839531,50.71215355,4536.2,4536.1,0.021]
[1757986840064,20.71215355,4536.2,4536.1,0.021]
[1757986840265,21.18698081,4536.2,4536.1,0.021]
[1757986840481,46.30287809,4536.2,4536.1,0.021]
[1757986841052,46.17924355,4536.2,4536.1,0.021]
[1757986841258,50.71215355,4536.2,4536.1,0.021]
[1757986841453,35.65856309,4536.2,4536.1,0.021]
[1757986841767,29.36710954,4536.2,4536.1,0.021]
[1757986841955,30.68460254,4536.2,4536.1,0.021]
[1757986842157,30.75603854,4536.2,4536.1,0.021]
[1757986842476,31.10187719,4536.2,4536.1,0.021]
[1757986842679,32.41192419,4536.2,4536.1,0.021]
[1757986842853,35.80900019,4536.2,4536.1,0.021]
[1757986843048,31.89728519,4536.2,4536.1,0.021]
[1757986843275,25.42919528,4536.2,4536.1,0.021]
[1757986843591,31.11312328,4536.2,4536.1,0.021]
[1757986843787,35.59516728,4536.2,4536.1,0.021]
[1757986844087,34.84704228,4536.2,4536.1,0.021]
[1757986844597,34.83598828,4536.2,4536.1,0.021]
[1757986845284,39.70903865,4536.2,4536.1,0.021]
[1757986845467,42.87045065,4536.2,4536.1,0.021]
[1757986845672,41.19864165,4536.2,4536.1,0.021]
[1757986846181,47.56084665,4536.2,4536.1,0.021]
[1757986846355,46.04584665,4536.2,4536.1,0.021]
[1757986846886,41.79701619,4536.2,4536.1,0.021]
[1757986847190,35.66592793,4536.2,4536.1,0.021]
[1757986847392,36.30486203,4536.2,4536.1,0.021]
[1757986847589,33.33110903,4536.2,4536.1,0.021]
[1757986847805,35.62428703,4536.2,4536.1,0.021]
[1757986847982,35.89936703,4536.2,4536.1,0.021]
[1757986848172,35.24727403,4536.2,4536.1,0.021]
[1757986848374,35.97527403,4536.2,4536.1,0.021]
[1757986848595,35.70019403,4536.2,4536.1,0.021]
[1757986848797,38.89392403,4536.2,4536.1,0.021]
[1757986848996,39.11924903,4536.2,4536.1,0.021]
[1757986849299,38.82428703,4536.2,4536.1,0.021]
[1757986849503,23.5671087,4536.2,4536.1,0.021]
[1757986849809,18.77540803,4536.2,4536.1,0.021]
[1757986850312,18.98190981,4536.2,4536.1,0.021]
[1757986851118,19.42960981,4536.2,4536.1,0.021]
[1757986851326,18.9819723,4536.2,4536.1,0.021]
[1757986852082,13.6273657,4536.2,4536.1,0.3111]
[1757986852385,13.32240179,4536.2,4536.1,1.2311]
[1757986852710,12.53040179,4536.2,4536.1,1.2311]
[1757986852875,9.64840179,4536.2,4536.1,1.2311]
[1757986853076,13.32240179,4536.2,4536.1,1.2311]
[1757986853786,13.32240179,4536.2,4536.1,1.2311]
[1757986853989,15.01840179,4536.2,4536.1,1.2311]
[1757986855375,17.22289012,4536.2,4536.1,0.3111]
[1757986856009,17.22289012,4536.2,4536.1,0.021]
[1757986856220,16.87705147,4536.2,4536.1,0.021]
[1757986856819,17.33255147,4536.2,4536.1,0.01765478]
[1757986857013,17.59995147,4536.2,4536.1,0.01765478]
[1757986858426,46.42203321,4536.2,4536.1,0.01765478]
[1757986858587,53.68179201,4536.2,4536.1,0.01765478]
[1757986859320,54.02762725,4536.2,4536.1,0.01765478]
[1757986860986,5.99653693,4536.1,4535.6,0.001]
[1757986861229,10.24556181,4535.7,4535.6,0.001]
[1757986861541,15.09285601,4535.7,4535.6,0.001]
[1757986861712,15.75519112,4535.7,4535.6,0.001]
[1757986861896,16.76432016,4535.7,4535.6,0.001]
[1757986862509,36.06428516,4535.7,4535.6,0.001]
[1757986864104,35.81100916,4535.7,4535.6,0.001]
[1757986864303,35.04390916,4535.7,4535.6,0.001]
[1757986865229,34.83707405,4535.7,4535.6,0.001]
[1757986865807,34.71297786,4535.7,4535.6,0.001]
[1757986866843,34.91979251,4535.7,4535.6,0.001]
[1757986867134,34.71297786,4535.7,4535.6,0.001]
[1757986867539,46.69640441,4535.7,4535.6,0.001]
[1757986867728,47.7538159,4535.7,4535.6,0.001]
[1757986868327,47.7538159,4535.7,4535.1,0.021]
[1757986868328,0.792,4535.5,4535.1,0.021]
[1757986868530,10.24580488,4535.2,4535.1,0.021]
[1757986868734,46.62495453,4535.2,4535.1,0.021]
[1757986868935,46.92991844,4535.2,4535.1,0.021]
[1757986869118,47.84531844,4535.2,4535.1,0.021]
[1757986869647,48.44085619,4535.2,4535.1,0.021]
[1757986869805,49.43527597,4535.2,4535.1,0.021]
[1757986870204,49.43488941,4535.2,4535.1,0.021]
[1757986870807,40.93119086,4535.2,4535.1,0.021]
[1757986871243,40.33603967,4535.2,4535.1,0.021]
[1757986871651,48.11682267,4535.2,4535.1,0.021]
[1757986871819,48.46273424,4535.2,4535.1,0.021]
[1757986872667,48.92263424,4535.2,4535.1,0.021]
[1757986873168,48.46273424,4535.2,4535.1,0.021]
[1757986873951,45.00912224,4535.2,4535.1,0.021]
[1757986874149,39.91133124,4535.2,4535.1,0.021]
[1757986874566,48.46273424,4535.2,4535.1,0.021]
[1757986875628,45.96616324,4535.2,4535.1,0.021]
[1757986875974,45.70793524,4535.2,4535.1,0.021]
[1757986876534,45.70181524,4535.2,4535.1,0.021]
[1757986876728,33.02703024,4535.2,4535.1,0.021]
[1757986876923,34.69857024,4535.2,4535.1,0.021]
[1757986877174,35.15351766,4535.2,4535.1,0.021]
[1757986877672,48.46218166,4535.2,4535.1,0.021]
[1757986877826,40.56304766,4535.2,4535.1,0.021]
[1757986878022,39.54803566,4535.2,4535.1,0.021]
[1757986878635,48.25586096,4535.2,4535.1,0.021]
[1757986879061,47.35130696,4535.2,4535.1,0.021]
[1757986879231,47.81120696,4535.2,4535.1,0.021]
[1757986879431,48.017479,4535.2,4535.1,0.021]
[1757986879633,48.922033,4535.2,4535.1,0.021]
[1757986880063,48.462133,4535.2,4535.1,0.021]
[1757986880648,18.57612143,4535.2,4535.1,0.021]
[1757986880851,5.99721754,4534.7,4534.6,0.001]
[1757986881036,43.142084,4534.7,4534.6,0.001]
[1757986881232,49.77265757,4534.7,4534.6,0.001]
[1757986881649,50.894152,4534.7,4534.6,0.001]
[1757986881939,51.201722,4534.7,4534.6,0.001]
[1757986883475,45.59657107,4534.7,4534.6,0.001]
[1757986883649,24.76292206,4534.7,4534.6,1.2256]
[1757986883979,28.12898606,4534.7,4534.6,1.2256]
[1757986884187,27.91951706,4534.7,4534.6,1.2256]
[1757986884390,25.71429952,4534.7,4534.6,0.7746]
[1757986884680,13.32344261,4534.7,4534.6,1.2256]
[1757986885044,13.32345376,4534.7,4534.6,1.2256]
[1757986885244,15.5286713,4534.7,4534.6,1.2256]
[1757986885871,16.38484346,4534.7,4534.6,1.2256]
[1757986887465,16.38484346,4534.7,4534.6,0.7626]
[1757986887767,16.38484346,4534.7,4534.6,0.001]
[1757986887970,16.85594346,4534.7,4534.6,0.001]